fUST/lending_fUST_20250820
["ID","MTS","AMOUNT","RATE_DAILY","PERIOD"]
[380305734,1755651045976,-480.0,0.00019474,2]
[380305735,1755651045985,-480.0,0.00019474,2]
[380305736,1755651045994,-1059.27,0.00019474,2]
[380305737,1755651046003,-480.0,0.00019474,2]
[380305738,1755651046013,-480.0,0.00019474,2]
[380305739,1755651046022,-480.0,0.00019474,2]
[380305740,1755651046032,-480.0,0.00019474,2]
[380305741,1755651046041,-480.0,0.00019474,2]
[380305742,1755651046051,-480.0,0.00019474,2]
[380305743,1755651046060,-480.0,0.00019474,2]
[380305744,1755651046069,-480.0,0.00019474,2]
[380305745,1755651046080,-480.0,0.00019474,2]
[380305746,1755651046090,-480.0,0.00019474,2]
[380305747,1755651046099,-303.0,0.00019474,2]
[380305748,1755651046109,-480.0,0.00019474,2]
[380305749,1755651046119,-1971.47960903,0.0001968,2]
[380305750,1755651046128,-282.13211643,0.00019721,2]
[380305751,1755651046137,-215.98149753,0.00019721,2]
[380305752,1755651046146,-1000.0,0.00019721,2]
[380305753,1755651046156,-500.0,0.00019721,2]
[380305754,1755651046166,-500.0,0.00019721,2]
[380305755,1755651046175,-500.0,0.00019721,2]
[380305756,1755651046185,-1000.0,0.00019721,2]
[380305757,1755651046195,-480.0,0.00019726,2]
[380305758,1755651046204,-440.0,0.00019726,2]
[380305759,1755651046213,-480.0,0.00019726,2]
[380305760,1755651046222,-480.0,0.00019726,2]
[380305761,1755651046232,-480.0,0.00019726,2]
[380305762,1755651046241,-508.19,0.00019726,2]
[380305763,1755651046250,-480.0,0.00019726,2]
[380305764,1755651046259,-480.0,0.00019726,2]
[380305765,1755651046269,-496.76,0.00019726,2]
[380305766,1755651046278,-480.0,0.00019726,2]
[380305767,1755651046287,-253.81035721,0.00019726,2]
[380305768,1755651046296,-1588.31,0.00019726,2]
[380305769,1755651046306,-480.0,0.00019726,2]
[380305770,1755651046315,-480.0,0.00019726,2]
[380305771,1755651046324,-480.0,0.00019726,2]
[380305772,1755651046333,-480.0,0.00019726,2]
[380305773,1755651046342,-480.0,0.00019726,2]
[380305774,1755651046351,-480.0,0.00019726,2]
[380305775,1755651046360,-480.0,0.00019726,2]
[380305776,1755651046369,-480.0,0.00019726,2]
[380305777,1755651046378,-166.17,0.00019726,2]
[380305778,1755651046387,-480.0,0.00019726,2]
[380305779,1755651046395,-480.0,0.00019726,2]
[380305780,1755651046405,-480.0,0.00019726,2]
[380305781,1755651046414,-480.0,0.00019726,2]
[380305782,1755651046423,-480.0,0.00019726,2]
[380305783,1755651046433,-423.38713799,0.00019726,2]
[380305785,1755651046442,-480.0,0.00019726,2]
[380305786,1755651046451,-547.51782302,0.00019726,2]
[380305787,1755651046460,-480.0,0.00019726,2]
[380305788,1755651046469,-480.0,0.00019726,2]
[380305789,1755651046479,-480.0,0.00019726,2]
[380305790,1755651046487,-480.0,0.00019726,2]
[380305791,1755651046497,-480.0,0.00019726,2]
[380305792,1755651046506,-480.0,0.00019726,2]
[380305793,1755651046515,-480.0,0.00019726,2]
[380305794,1755651046524,-480.0,0.00019726,2]
[380305795,1755651046534,-480.0,0.00019726,2]
[380305796,1755651046543,-480.0,0.00019726,2]
[380305797,1755651046552,-480.0,0.00019726,2]
[380305798,1755651046561,-480.0,0.00019726,2]
[380305799,1755651046571,-480.0,0.00019726,2]
[380305800,1755651046580,-480.0,0.00019726,2]
[380305801,1755651046589,-469.4,0.00019726,2]
[380305802,1755651046598,-480.0,0.00019726,2]
[380305803,1755651046607,-546.2,0.00019726,2]
[380305804,1755651046616,-480.0,0.00019726,2]
[380305805,1755651046625,-480.0,0.00019726,2]
[380305806,1755651046635,-480.0,0.00019726,2]
[380305807,1755651046644,-480.0,0.00019726,2]
[380305808,1755651046653,-480.0,0.00019726,2]
[380305809,1755651046662,-480.0,0.00019726,2]
[380305810,1755651046672,-480.0,0.00019726,2]
[380305811,1755651046681,-585.31720336,0.00019726,2]
[380305812,1755651046690,-480.0,0.00019726,2]
[380305813,1755651046699,-480.0,0.00019726,2]
[380305814,1755651046708,-480.0,0.00019726,2]
[380305815,1755651046717,-480.0,0.00019726,2]
[380305816,1755651046727,-480.0,0.00019726,2]
[380305817,1755651046738,-480.0,0.00019726,2]
[380305818,1755651046747,-480.0,0.00019726,2]
[380305819,1755651046757,-480.0,0.00019726,2]
[380305820,1755651046767,-615.22,0.00019726,2]
[380305821,1755651046777,-480.0,0.00019726,2]
[380305822,1755651046787,-480.0,0.00019726,2]
[380305823,1755651046796,-480.0,0.00019726,2]
[380305824,1755651046806,-480.0,0.00019726,2]
[380305825,1755651046815,-480.0,0.00019726,2]
[380305826,1755651046824,-480.0,0.00019726,2]
[380305827,1755651046834,-480.0,0.00019726,2]
[380305828,1755651046843,-480.0,0.00019726,2]
[380305829,1755651046852,-461.66191109,0.00019726,2]
[380305830,1755651046861,-480.0,0.00019726,2]
[380305831,1755651046875,-480.0,0.00019726,2]
[380305832,1755651046884,-480.0,0.00019726,2]
[380305833,1755651046893,-480.0,0.00019726,2]
[380305834,1755651046903,-480.0,0.00019726,2]
[380305835,1755651046914,-480.0,0.00019726,2]
[380305836,1755651046923,-480.0,0.00019726,2]
[380305837,1755651046933,-480.0,0.00019747,2]
[380305838,1755651046943,-480.0,0.00019747,2]
[380305839,1755651046952,-480.0,0.00019747,2]
[380305840,1755651046962,-480.0,0.00019747,2]
[380305841,1755651046971,-480.0,0.00019747,2]
[380305842,1755651046980,-245.55,0.00019747,2]
[380305843,1755651046989,-480.0,0.00019747,2]
[380305844,1755651046999,-480.0,0.00019747,2]
[380305845,1755651047008,-320.0,0.00019747,2]
[380305846,1755651047017,-571.37,0.00019747,2]
[380305847,1755651047026,-536.74,0.00019747,2]
[380305848,1755651047036,-480.0,0.00019747,2]
[380305849,1755651047046,-480.0,0.00019747,2]
[380305850,1755651047055,-480.0,0.00019747,2]
[380305851,1755651047065,-480.0,0.00019747,2]
[380305852,1755651047074,-480.0,0.00019747,2]
[380305853,1755651047084,-480.0,0.00019747,2]
[380305854,1755651047094,-480.0,0.00019747,2]
[380305855,1755651047104,-480.0,0.00019747,2]
[380305856,1755651047113,-480.0,0.00019747,2]
[380305857,1755651047122,-480.0,0.00019747,2]
[380305858,1755651047131,-499.36,0.00019747,2]
[380305859,1755651047140,-480.0,0.00019747,2]
[380305860,1755651047149,-615.69,0.00019747,2]
[380305861,1755651047159,-241.09264556,0.00019747,2]
[380305862,1755651047168,-480.0,0.00019747,2]
[380305863,1755651047177,-480.0,0.00019747,2]
[380305864,1755651047187,-480.0,0.00019747,2]
[380305865,1755651047196,-480.0,0.00019747,2]
[380305866,1755651047205,-480.0,0.00019747,2]
[380305867,1755651047214,-480.0,0.00019747,2]
[380305868,1755651047224,-480.0,0.00019747,2]
[380305869,1755651047233,-480.0,0.00019747,2]
[380305870,1755651047242,-480.0,0.00019747,2]
[380305871,1755651047251,-480.0,0.00019747,2]
[380305872,1755651047260,-480.0,0.00019748,2]
[380305873,1755651047269,-480.0,0.00019748,2]
[380305874,1755651047279,-480.0,0.00019748,2]
[380305875,1755651047288,-480.0,0.00019748,2]
[380305876,1755651047297,-480.0,0.00019748,2]
[380305877,1755651047307,-1520.44,0.00019748,2]
[380305878,1755651047316,-1059.27,0.00019748,2]
[380305879,1755651047326,-480.0,0.00019748,2]
[380305880,1755651047335,-174.33755443,0.00019748,2]
[380305881,1755651047344,-480.0,0.00019748,2]
[380305882,1755651047353,-480.0,0.00019748,2]
[380305883,1755651047363,-480.0,0.00019748,2]
[380305884,1755651047372,-539.70310727,0.00019748,2]
[380305885,1755651047382,-480.0,0.00019748,2]
[380305886,1755651047392,-500.0,0.00019853,2]
[380305887,1755651047401,-292.190917,0.00019863,2]
[380305888,1755651047410,-1000.0,0.0001988,2]
[380305889,1755651047419,-151.0,0.000199,2]
[380305890,1755651047429,-1000.0,0.0001995,2]
[380305891,1755651047439,-160.0,0.00019968,2]
[380305892,1755651047448,-480.0,0.0002,2]
[380305893,1755651047457,-480.0,0.0002,2]
[380305894,1755651047466,-480.0,0.0002,2]
[380305895,1755651047475,-1849.5,0.0002,2]
[380305896,1755651047484,-480.0,0.0002,2]
[380305897,1755651047494,-480.0,0.0002,2]
[380305898,1755651047502,-1588.31,0.0002,2]
[380305899,1755651047511,-598.46,0.0002,2]
[380305900,1755651047620,-480.0,0.0002,2]
[380305901,1755651047630,-480.0,0.0002,2]
[380305902,1755651047639,-480.0,0.0002,2]
[380305903,1755651047648,-480.0,0.0002,2]
[380305904,1755651047657,-480.0,0.0002,2]
[380305905,1755651047666,-480.0,0.0002,2]
[380305906,1755651047676,-160.0,0.0002,3]
[380305907,1755651047688,-480.0,0.0002,2]
[380305908,1755651047698,-480.0,0.0002,2]
[380305909,1755651047707,-480.0,0.0002,2]
[380305910,1755651047718,-480.0,0.0002,2]
[380305911,1755651047727,-480.0,0.0002,2]
[380305912,1755651047738,-480.0,0.0002,2]
[380305913,1755651047748,-463.1809597,0.0002,2]
[380305914,1755651047758,-480.0,0.0002,2]
[380305915,1755651047768,-480.0,0.0002,2]
[380305916,1755651047777,-480.0,0.0002,2]
[380305917,1755651047787,-480.0,0.0002,2]
[380305918,1755651047796,-311.09,0.0002,2]
[380305919,1755651047805,-500.0,0.0002,2]
[380305920,1755651047815,-480.0,0.0002,2]
[380305921,1755651047824,-522.88,0.0002,2]
[380305922,1755651047833,-496.03,0.0002,2]
[380305923,1755651047843,-480.0,0.0002,2]
[380305924,1755651047852,-480.0,0.0002,2]
[380305925,1755651047864,-480.0,0.0002,2]
[380305926,1755651047874,-460.0,0.0002,2]
[380305927,1755651047883,-480.0,0.0002,2]
[380305928,1755651047891,-563.65568704,0.0002,2]
[380305929,1755651047901,-480.0,0.0002,2]
[380305930,1755651047911,-480.0,0.0002,2]
[380305931,1755651047920,-480.0,0.0002,2]
[380305932,1755651047930,-288.44,0.0002,2]
[380305933,1755651047940,-549.82,0.0002,2]
[380305934,1755651047949,-480.0,0.0002,2]
[380305935,1755651047958,-480.0,0.0002,2]
[380305936,1755651047967,-480.0,0.0002,2]
[380305937,1755651047976,-480.0,0.0002,2]
[380305938,1755651047986,-480.0,0.0002,2]
[380305939,1755651047995,-480.0,0.0002,2]
[380305940,1755651048005,-480.0,0.0002,2]
[380305941,1755651048014,-480.0,0.0002,2]
[380305942,1755651048023,-1000.0,0.00020021,2]
[380305943,1755651048032,-500.0,0.00020021,2]
[380305944,1755651048041,-509.53924554,0.00020021,2]
[380305945,1755651048051,-501.93147384,0.00020021,2]
[380305946,1755651048060,-1000.0,0.00020021,2]
[380305947,1755651048069,-1000.0,0.00020021,2]
[380305948,1755651048079,-1000.0,0.00020021,2]
[380305949,1755651048088,-1000.0,0.00020021,2]
[380305950,1755651048097,-547.76989051,0.00020021,2]
[380305951,1755651048106,-1069.61629274,0.00020021,2]
[380305952,1755651048115,-1000.0,0.00020021,2]
[380305953,1755651048124,-503.19760931,0.00020021,2]
[380305954,1755651048134,-363.12,0.00020021,2]
[380305955,1755651048144,-480.0,0.00020021,2]
[380305956,1755651048153,-480.0,0.00020021,2]
[380305957,1755651048162,-480.0,0.00020021,2]
[380305958,1755651048171,-480.0,0.00020021,2]
[380305959,1755651048180,-436.97,0.00020021,2]
[380305960,1755651048190,-449.31,0.00020021,2]
[380305961,1755651048200,-480.0,0.00020021,2]
[380305962,1755651048209,-385.56212575,0.00020021,2]
[380305963,1755651048218,-480.0,0.00020021,2]
[380305964,1755651048227,-480.0,0.00020021,2]
[380305965,1755651048236,-480.0,0.00020021,2]
[380305966,1755651048246,-480.0,0.00020021,2]
[380305967,1755651048256,-480.0,0.00020021,2]
[380305968,1755651048265,-480.0,0.00020022,2]
[380305969,1755651048274,-480.0,0.00020022,2]
[380305970,1755651048284,-480.0,0.00020022,2]
[380305971,1755651048293,-480.0,0.00020022,2]
[380305972,1755651048303,-1520.44,0.00020022,2]
[380305973,1755651048312,-1059.27,0.00020022,2]
[380305974,1755651048321,-480.0,0.00020022,2]
[380305975,1755651048331,-480.0,0.00020022,2]
[380305976,1755651048340,-249.226096,0.00020187,2]
[380305977,1755651048349,-500.0,0.00020268,2]
[380305978,1755651048358,-480.0,0.00020273,2]
[380305979,1755651048367,-480.0,0.00020273,2]
[380305980,1755651048376,-489.24,0.00020273,2]
[380305981,1755651048385,-480.0,0.00020273,2]
[380305982,1755651048395,-1588.31,0.00020273,2]
[380305983,1755651048404,-480.0,0.00020273,2]
[380305984,1755651048414,-480.0,0.00020273,2]
[380305985,1755651048423,-480.0,0.00020273,2]
[380305986,1755651048435,-480.0,0.00020273,2]
[380305987,1755651048444,-251.34,0.00020273,2]
[380305988,1755651048453,-480.0,0.00020273,2]
[380305989,1755651048462,-369.27573417,0.00020273,2]
[380305990,1755651048472,-480.0,0.00020273,2]
[380305991,1755651048482,-480.0,0.00020273,2]
[380305992,1755651048491,-480.0,0.00020273,2]
[380305993,1755651048500,-480.0,0.00020273,2]
[380305994,1755651048509,-480.0,0.00020273,2]
[380305995,1755651048519,-480.0,0.00020273,2]
[380305996,1755651048528,-480.0,0.00020273,2]
[380305997,1755651048538,-551.54,0.00020273,2]
[380305998,1755651048547,-480.0,0.00020273,2]
[380305999,1755651048556,-480.0,0.00020273,2]
[380306000,1755651048565,-480.0,0.00020273,2]
[380306001,1755651048575,-480.0,0.00020273,2]
[380306002,1755651048585,-480.0,0.00020273,2]
[380306003,1755651048595,-158.0,0.00020273,2]
[380306004,1755651048604,-480.0,0.00020273,2]
[380306005,1755651048614,-562.33,0.00020273,2]
[380306006,1755651048623,-480.0,0.00020273,2]
[380306007,1755651048632,-480.0,0.00020273,2]
[380306008,1755651048642,-480.0,0.00020295,2]
[380306009,1755651048651,-480.0,0.00020295,2]
[380306010,1755651048661,-514.56,0.00020295,2]
[380306011,1755651048670,-480.0,0.00020295,2]
[380306012,1755651048679,-480.0,0.00020295,2]
[380306013,1755651048690,-480.0,0.00020295,2]
[380306014,1755651048699,-480.0,0.00020296,2]
[380306015,1755651048708,-480.0,0.00020296,2]
[380306016,1755651048718,-480.0,0.00020296,2]
[380306017,1755651048727,-1520.44,0.00020296,2]
[380306018,1755651048737,-1059.27,0.00020296,2]
[380306019,1755651048746,-480.0,0.00020296,2]
[380306020,1755651048755,-151.0,0.00020296,2]
[380306021,1755651048764,-151.0,0.00020296,2]
[380306022,1755651048774,-401.26364293,0.00020296,2]
[380306023,1755651048783,-1289.16,0.0002036,3]
[380306024,1755651048793,-644.58,0.0002036,3]
[380306025,1755651048802,-322.28,0.0002036,3]
[380306026,1755651048813,-151.0,0.000204,4]
[380306027,1755651048822,-500.0,0.00020401,2]
[380306028,1755651048831,-260.0,0.00020516,2]
[380306029,1755651048840,-480.0,0.00020547,2]
[380306030,1755651048849,-480.0,0.00020547,2]
[380306031,1755651048859,-1588.31,0.00020547,2]
[380306032,1755651048869,-480.0,0.00020547,2]
[380306033,1755651048879,-480.0,0.00020547,2]
[380306034,1755651048889,-480.0,0.00020547,2]
[380306035,1755651048898,-267.06256419,0.00020547,2]
[380306036,1755651048909,-480.0,0.00020547,2]
[380306037,1755651048918,-480.0,0.00020547,2]
[380306038,1755651048927,-480.0,0.00020547,2]
[380306039,1755651048937,-480.0,0.00020547,2]
[380306040,1755651048946,-480.0,0.00020547,2]
[380306041,1755651048956,-463.38,0.00020547,2]
[380306042,1755651048966,-480.0,0.00020547,2]
[380306043,1755651048975,-151.0,0.00020547,2]
[380306044,1755651048984,-151.0,0.00020547,2]
[380306045,1755651048993,-151.0,0.00020547,2]
[380306046,1755651049002,-480.0,0.00020547,2]
[380306047,1755651049011,-151.0,0.00020547,2]
[380306048,1755651049020,-151.0,0.00020547,2]
[380306049,1755651049030,-151.0,0.00020547,2]
[380306050,1755651049039,-152.45789,0.00020547,2]
[380306051,1755651049048,-480.0,0.00020547,2]
[380306052,1755651049057,-480.0,0.00020547,2]
[380306053,1755651049066,-480.0,0.00020547,2]
[380306054,1755651049076,-151.0,0.00020547,2]
[380306055,1755651049085,-153.9889,0.00020547,2]
[380306056,1755651049094,-151.0,0.00020547,2]
[380306057,1755651049103,-151.0,0.00020547,2]
[380306058,1755651049113,-193.66,0.00020547,2]
[380306059,1755651049122,-151.0,0.00020547,2]
[380306060,1755651049132,-151.0,0.00020547,2]
[380306061,1755651049141,-480.0,0.00020547,2]
[380306062,1755651049150,-151.0,0.00020547,2]
[380306063,1755651049159,-263.533358,0.00020547,2]
[380306064,1755651049168,-1500.0,0.00020568,2]
[380306065,1755651049177,-1000.0,0.00020568,2]
[380306066,1755651049186,-500.0,0.00020568,2]
[380306067,1755651049196,-1500.0,0.00020568,2]
[380306068,1755651049205,-1500.0,0.00020568,2]
[380306069,1755651049214,-302.01150709,0.00020569,2]
[380306070,1755651049224,-163.12371991,0.00020569,2]
[380306071,1755651049233,-287.0,0.00020569,2]
[380306072,1755651049243,-480.0,0.00020569,2]
[380306073,1755651049252,-385.24201234,0.0002057,2]
[380306074,1755651049263,-363.11,0.0002057,2]
[380306075,1755651049272,-1520.44,0.0002057,2]
[380306076,1755651049281,-1059.27,0.0002057,2]
[380306077,1755651049291,-480.0,0.0002057,2]
[380306078,1755651049300,-151.0,0.000206,3]
[380306079,1755651049309,-480.0,0.0002068,2]
[380306080,1755651049318,-500.0,0.00020694,2]
[380306081,1755651049327,-501.28714574,0.00020694,2]
[380306082,1755651049336,-500.0,0.00020694,2]
[380306083,1755651049345,-500.0,0.00020694,2]
[380306084,1755651049354,-500.0,0.00020694,2]
[380306085,1755651049363,-181.301359,0.00020694,2]
[380306086,1755651049372,-238.749711,0.00020694,2]
[380306087,1755651049381,-151.0,0.00020694,2]
[380306088,1755651049390,-185.497068,0.00020694,2]
[380306089,1755651049399,-185.497068,0.00020694,2]
[380306090,1755651049408,-185.497068,0.00020694,2]
[380306091,1755651049417,-185.497068,0.00020694,2]
[380306092,1755651049426,-151.0,0.000207,3]
[380306093,1755651049436,-420.0,0.00020707,2]
[380306094,1755651049445,-480.0,0.00020775,2]
[380306095,1755651049454,-480.0,0.00020775,2]
[380306096,1755651049463,-480.0,0.00020775,2]
[380306097,1755651049473,-480.0,0.00020775,2]
[380306098,1755651049482,-480.0,0.00020775,2]
[380306099,1755651049490,-361.13926781,0.00020775,2]
[380306100,1755651049499,-480.0,0.00020775,2]
[380306101,1755651049508,-480.0,0.00020775,2]
[380306102,1755651049517,-462.60246909,0.00020775,2]
[380306103,1755651049526,-480.0,0.00020775,2]
[380306104,1755651049536,-616.14675918,0.00020775,2]
[380306105,1755651049545,-480.0,0.00020775,2]
[380306106,1755651049554,-480.0,0.00020775,2]
[380306107,1755651049563,-480.0,0.00020775,2]
[380306108,1755651049572,-480.0,0.00020775,2]
[380306109,1755651049582,-480.0,0.00020775,2]
[380306110,1755651049591,-480.0,0.00020775,2]
[380306111,1755651049601,-320.01086731,0.00020775,2]
[380306112,1755651049610,-480.0,0.00020775,2]
[380306113,1755651049619,-480.0,0.00020775,2]
[380306114,1755651049628,-480.0,0.00020775,2]
[380306115,1755651049637,-480.0,0.00020775,2]
[380306116,1755651049646,-480.0,0.00020775,2]
[380306117,1755651049655,-480.0,0.00020775,2]
[380306118,1755651049664,-480.0,0.00020775,2]
[380306119,1755651049673,-480.0,0.00020775,2]
[380306120,1755651049682,-480.0,0.00020775,2]
[380306121,1755651049691,-480.0,0.00020775,2]
[380306122,1755651049701,-460.0,0.00020775,2]
[380306123,1755651049710,-480.0,0.00020775,2]
[380306124,1755651049719,-480.0,0.00020775,2]
[380306125,1755651049729,-480.0,0.00020775,2]
[380306126,1755651049738,-480.0,0.00020775,2]
[380306127,1755651049747,-480.0,0.00020775,2]
[380306128,1755651049756,-480.0,0.00020775,2]
[380306129,1755651049765,-406.88320721,0.00020775,2]
[380306130,1755651049775,-480.0,0.00020775,2]
[380306131,1755651049785,-480.0,0.00020775,2]
[380306132,1755651049794,-480.0,0.00020775,2]
[380306133,1755651049803,-465.81087191,0.00020775,2]
[380306134,1755651049812,-480.0,0.00020775,2]
[380306135,1755651049821,-455.31106279,0.00020775,2]
[380306136,1755651049831,-480.0,0.00020775,2]
[380306137,1755651049840,-480.0,0.00020775,2]
[380306138,1755651049849,-480.0,0.00020775,2]
[380306139,1755651049858,-480.0,0.00020775,2]
[380306140,1755651049868,-480.0,0.00020775,2]
[380306141,1755651049880,-480.0,0.00020775,2]
[380306142,1755651049889,-480.0,0.00020775,2]
[380306143,1755651049898,-480.0,0.00020775,2]
[380306144,1755651049909,-480.0,0.00020775,2]
[380306145,1755651049918,-480.0,0.00020775,2]
[380306146,1755651049927,-480.0,0.00020775,2]
[380306147,1755651049936,-1240.33,0.00020775,2]
[380306148,1755651049946,-1240.33,0.00020775,2]
[380306149,1755651049955,-1240.33,0.00020775,2]
[380306150,1755651049964,-1240.33,0.00020775,2]
[380306151,1755651049974,-1240.33,0.00020775,2]
[380306152,1755651049983,-629.06902461,0.00020775,2]
[380306153,1755651049993,-480.0,0.00020775,2]
[380306154,1755651050002,-480.0,0.00020775,2]
[380306155,1755651050011,-480.0,0.00020775,2]
[380306156,1755651050021,-445.44377966,0.00020775,2]
[380306157,1755651050124,-480.0,0.00020775,2]
[380306158,1755651050134,-480.0,0.00020775,2]
[380306159,1755651050144,-351.17272675,0.00020775,2]
[380306160,1755651050153,-480.0,0.00020775,2]
[380306161,1755651050162,-480.0,0.00020775,2]
[380306162,1755651050171,-327.25856176,0.00020775,2]
[380306163,1755651050181,-480.0,0.00020775,2]
[380306164,1755651050190,-480.0,0.00020775,2]
[380306165,1755651050199,-480.0,0.00020775,2]
[380306166,1755651050208,-480.0,0.00020775,2]
[380306167,1755651050218,-500.0,0.00020775,2]
[380306168,1755651050227,-591.63888149,0.00020775,2]
[380306169,1755651050237,-480.0,0.00020775,2]
[380306170,1755651050246,-480.0,0.00020775,2]
[380306171,1755651050256,-480.0,0.00020775,2]
[380306172,1755651050265,-423.6777426,0.00020775,2]
[380306173,1755651050274,-480.0,0.00020775,2]
[380306174,1755651050283,-480.0,0.00020775,2]
[380306175,1755651050293,-480.0,0.00020775,2]
[380306176,1755651050302,-480.0,0.00020775,2]
[380306177,1755651050311,-480.0,0.00020775,2]
[380306178,1755651050320,-480.0,0.00020775,2]
[380306179,1755651050329,-480.0,0.00020775,2]
[380306180,1755651050339,-480.0,0.00020775,2]
[380306181,1755651050348,-480.0,0.00020775,2]
[380306182,1755651050357,-480.0,0.00020775,2]
[380306183,1755651050366,-422.36852799,0.00020775,2]
[380306184,1755651050375,-480.0,0.00020775,2]
[380306185,1755651050384,-480.0,0.00020775,2]
[380306186,1755651050393,-480.0,0.00020775,2]
[380306187,1755651050404,-480.0,0.00020775,2]
[380306188,1755651050414,-480.0,0.00020775,2]
[380306189,1755651050423,-480.0,0.00020775,2]
[380306190,1755651050436,-480.0,0.00020775,2]
[380306191,1755651050445,-480.0,0.00020775,2]
[380306192,1755651050454,-480.0,0.00020775,2]
[380306193,1755651050464,-151.0,0.000208,3]
[380306194,1755651050473,-210.792876,0.00020816,2]
[380306195,1755651050482,-151.0,0.00020816,2]
[380306196,1755651050492,-151.0,0.00020816,2]
[380306197,1755651050501,-151.0,0.00020816,2]
[380306198,1755651050510,-151.0,0.00020816,2]
[380306199,1755651050520,-151.0,0.00020816,2]
[380306200,1755651050530,-480.0,0.00020821,2]
[380306201,1755651050539,-1588.31,0.00020821,2]
[380306202,1755651050549,-480.0,0.00020821,2]
[380306203,1755651050558,-480.0,0.00020821,2]
[380306204,1755651050567,-480.0,0.00020821,2]
[380306205,1755651050576,-480.0,0.00020821,2]
[380306206,1755651050586,-480.0,0.00020821,2]
[380306207,1755651050595,-480.0,0.00020821,2]
[380306208,1755651050604,-480.0,0.00020821,2]
[380306209,1755651050613,-480.0,0.00020821,2]
[380306210,1755651050621,-480.0,0.00020821,2]
[380306211,1755651050630,-480.0,0.00020821,2]
[380306212,1755651050643,-295.48,0.00020821,2]
[380306213,1755651050652,-480.0,0.00020821,2]
[380306214,1755651050662,-187.42,0.00020821,2]
[380306215,1755651050672,-355.30030621,0.00020821,2]
[380306216,1755651050681,-160.63757412,0.00020824,2]
[380306217,1755651050694,-500.0,0.00020839,2]
[380306218,1755651050703,-500.0,0.00020839,2]
[380306219,1755651050712,-500.0,0.00020839,2]
[380306220,1755651050721,-500.0,0.00020839,2]
[380306221,1755651050731,-500.0,0.00020839,2]
[380306222,1755651050740,-1520.44,0.00020844,2]
[380306223,1755651050750,-1059.27,0.00020844,2]
[380306224,1755651050759,-480.0,0.00020844,2]
[380306225,1755651050768,-500.0,0.00021007,2]
[380306226,1755651050778,-500.0,0.00021007,2]
[380306227,1755651050787,-480.0,0.00021049,2]
[380306228,1755651050796,-480.0,0.00021049,2]
[380306229,1755651050807,-480.0,0.00021049,2]
[380306230,1755651050816,-480.0,0.00021049,2]
[380306231,1755651050825,-480.0,0.00021049,2]
[380306232,1755651050835,-480.0,0.00021049,2]
[380306233,1755651050845,-480.0,0.00021049,2]
[380306234,1755651050854,-480.0,0.00021049,2]